Cogmind - Beta 16 @@@ ROGUE MODE // 2025.11.28 @ 16:27:50 Player: ktur Result: Destroyed by C-35 Carver with Carbide Saw Performance ------------- Evolutions (5) 2500 Regions Visited (7) 1400 Robots Destroyed (27) 135 Value Destroyed (614) 614 Prototype IDs (18) 360 Alien Tech Used (0) 0 Bonus (337) 337 TOTAL SCORE: 5346 Bonus ------- Follower Combat Kills 37 Registered with UFD 300 Cogmind --------- Core Integrity 0/1000 Matter 143/300 Energy 37/100 System Corruption 3% Temperature Cool (0) Movement Flying (35) Location -5/Factory Parts ------- > --- POWER (1) -------- (None) > --- PROPULSION (5) --- Cooled Nuclear Pulse Thruster > --- UTILITY (9) ------ Machine Analyzer Enhanced Optical Array Advanced Signal Interpreter Improved Propulsion Shielding Hacking Suite Hacking Suite Hacking Suite Hacking Suite > --- WEAPON (2) ------- (None) > --- INVENTORY (5) ---- Centrium Leg Experimental Actuator Array IN-MT5's Pitchfork "Insurrection" (18) Junk Cannon (7) Peak State ------------ > --- POWER ------------ (None) > --- PROPULSION ------- Advanced Heavy Siege Treads VTOL Module VTOL Module > --- UTILITY ---------- Machine Analyzer Enhanced Optical Array Seismic Detector Advanced Melee Analysis Suite Improved Propulsion Shielding Hacking Suite Hacking Suite Hacking Suite Authchip [Weapon] > --- WEAPON ----------- Chainsword > --- INVENTORY -------- Centrium Leg Experimental Actuator Array CPS Tube Junk Cannon [Rating: 59] Favorites ----------- Power Light Ion Engine Engine Light Ion Engine Power Core Light Nuclear Core Propulsion Light Treads Treads Light Treads Wheel Wheel Flight Unit VTOL Module Utility Hacking Suite Device Seismic Detector Storage Small Storage Unit Processor Machine Analyzer Hackware Hacking Suite Protection Improved Propulsion Shielding Weapon Assault Rifle Energy Gun Small Laser Energy Cannon Subdweller Beam Cannon Ballistic Gun Assault Rifle Special Weapon LU-1G1's Laser Shovel Slashing Weapon Chainsword Special Melee Weapon Datajack Build | -11 -10 -10 -10 -7 -5 -5 -5 ------- Run | Yrd Mat Min Sub Scr Fac Was Fac Slots Evolved 10 | . . . . . 10 . . Power . | . . . . . . . . Propulsion 3 | . . . . . 3 . . Utility 7 | . . . . . 7 . . Weapon . | . . . . . . . . Parts Attached 59 | 8 . . 9 15 13 4 10 Power 5 | 1 . . 1 2 1 . . Engine 3 | 1 . . 1 1 . . . Core 2 | . . . . 1 1 . . Reactor . | . . . . . . . . Propulsion 11 | 2 . . 3 2 2 1 1 Treads 4 | 2 . . 1 . . 1 . Leg . | . . . . . . . . Wheel 2 | . . . 2 . . . . Hover . | . . . . . . . . Flight 5 | . . . . 2 2 . 1 Utility 27 | 2 . . . 6 9 3 7 Device 7 | 1 . . . 2 2 1 1 Storage 3 | 1 . . . 2 . . . Processor 6 | . . . . . 4 1 1 Hackware 9 | . . . . 1 2 1 5 Protection 2 | . . . . 1 1 . . Artifact . | . . . . . . . . Weapon 16 | 3 . . 5 5 1 . 2 Energy Gun 1 | 1 . . . . . . . Energy Cannon 1 | . . . 1 . . . . Ballistic Gun 6 | 2 . . 4 . . . . Ballistic Cannon . | . . . . . . . . Launcher . | . . . . . . . . Special Weapon 4 | . . . . 2 . . 2 Impact Weapon . | . . . . . . . . Slashing Weapon 3 | . . . . 3 . . . Piercing Weapon . | . . . . . . . . Special Melee Weapon 1 | . . . . . 1 . . Unidentified Prototypes 4 | . . . . 2 . 1 1 Parts Lost 20 | . . . 9 . 4 . 7 Power 3 | . . . 2 . 1 . . Propulsion 6 | . . . 2 . 2 . 2 Utility 6 | . . . 1 . 1 . 4 Weapon 5 | . . . 4 . . . 1 Highest Loss Streak 6 | . . . 4 . 3 . 6 To Critical Strikes 1 | . . . 1 . . . . Average Backups 4 | 3 5 5 6 4 3 4 3 Power . | . 1 1 . . . . . Propulsion 1 | 1 2 2 1 1 . . 1 Utility . | . . . . 1 . 1 1 Weapon 1 | 1 2 2 4 1 1 1 1 Tool/Special . | . . . . . . . . Unused Backups 12 | . . . 1 8 1 . 2 Power 4 | . . . . 2 1 . 1 Propulsion 3 | . . . . 2 . . 1 Utility 1 | . . . . 1 . . . Weapon 2 | . . . 1 1 . . . Tool/Special 2 | . . . . 2 . . . Average Slot Usage (%) 75 | . 100 100 92 65 64 70 62 Engine 4 | . 14 14 10 . . . . Core 1 | . . . . 3 3 . . Treads 8 | . 28 28 12 3 . . . Wheel 8 | . . . 14 15 . . . Flight 6 | . . . . 8 13 11 8 Device 7 | . 14 14 11 4 6 7 4 Storage 8 | . 14 14 14 9 . . . Processor 4 | . . . . . 9 17 17 Hackware 5 | . . . . 1 16 21 19 Protection 1 | . . . . . 3 5 4 Ballistic Gun 11 | . 28 28 24 8 . . . Slashing Weapon 3 | . . . . 7 3 5 3 Peak Build Rating 59 | 7 7 7 11 30 48 59 59 Average Rating 18 | 5 7 7 8 12 37 41 39 On Entrance 19 | . 7 7 7 8 30 39 59 Avg Prop Armor Cover (%) 13 | . . . 12 14 18 . 19 Naked Turns . | . . . . . . . . Heaviest Build 33 | 13 13 13 19 33 14 8 17 Greatest Support 80 | 40 40 40 40 20 16 80 80 Greatest Overweight (x) 2 | . . . 1 2 2 2 2 Average Overweight (x) . | . . . . . . . . Largest Inventory Capacity 15 | 8 8 8 8 15 5 5 5 Average Capacity 7 | 7 8 8 8 8 5 5 5 Most Carried 11 | 7 5 5 8 11 5 5 5 Average Carried 5 | 3 5 5 6 6 4 4 4 Final Capacity 8 | 8 8 8 8 5 5 5 5 Final Carried 8 | 5 5 5 8 4 5 5 5 Class Distribution -------------------- 68% | Mutant 20% | Hacker-Sprinter 6% | Derelict-Mutant 4% | Hacker-Mutant Dominant Class ---------------- Mutant | -10/Materials Mutant | -10/Mines Mutant | -10/Subcaves Mutant | -7/Scraptown Hacker-Sprinter | -5/Factory Hacker-Sprinter | -5/Waste Hacker-Sprinter | -5/Factory Resources | -11 -10 -10 -10 -7 -5 -5 -5 ----------- Run | Yrd Mat Min Sub Scr Fac Was Fac Matter Collected 992 | 315 . 79 290 140 36 . 132 Remotely . | . . . . . . . . Salvage Created 792 | 105 10 137 394 . 134 . 12 Parts 61 | 7 3 15 25 . 10 . 1 Haulers Intercepted . | . . . . . . . . Recyclers Shooed 2 | 1 . 1 . . . . . Parts Field Recycled . | . . . . . . . . Retrieved Matter . | . . . . . . . . Parts Self-Destructed 3 | . . . 3 . . . . Prevented . | . . . . . . . . Parts Restored . | . . . . . . . . Kills | -11 -10 -10 -10 -7 -5 -5 -5 ------- Run | Yrd Mat Min Sub Scr Fac Was Fac Combat Hostiles Destroyed 20 | . . 6 9 . 5 . . Melee 5 | . . . . . 5 . . Guns 12 | . . 6 6 . . . . Cannons 3 | . . . 3 . . . . Classes Destroyed 6 | 2 1 1 1 . . . 1 Worker 1 | . . . . . . . 1 Tunneler 2 | 2 . . . . . . . Recycler 2 | 1 . 1 . . . . . Operator 2 | . 1 . . . 1 . . Swarmer 11 | . . 6 . . 5 . . Subdweller 9 | . . . 9 . . . . Best Kill Streak 4 | 2 1 3 2 . 4 . 1 Combat Bots Only 4 | . . 3 2 . 4 . . Max Kills in Single Turn 1 | 1 1 1 1 . 1 . 1 Gunslinging . | . . . . . . . . Exploded . | . . . . . . . . Melee 1 | . . . . . 1 . . Uniques/NPCs Destroyed . | . . . . . . . . Combat | -11 -10 -10 -10 -7 -5 -5 -5 -------- Run | Yrd Mat Min Sub Scr Fac Was Fac Hostile Shots Fired 210 | . . 24 79 4 73 . 30 Missed 69 | . . 4 23 4 33 . 5 Hits 141 | . . 20 56 . 40 . 25 Melee 19 | . . . . . . . 19 Projectile 122 | . . 20 56 . 40 . 6 Critical Strikes 9 | . . 1 2 . . . 6 Damage Taken 2915 | . . 162 1203 . 621 . 929 Core 1244 | . . 28 203 . 279 . 734 Absorbed by Shields . | . . . . . . . . Redirected to Shielding 48 | . . . . . 48 . . Core Remaining (%) 53 | 100 . . . 7 . . . Volleys Fired 70 | 8 3 8 49 . . . 2 Largest 2 | 2 2 2 2 . . . 1 Hottest 80 | 40 40 40 80 . . . . Shots Fired 125 | 16 6 16 85 . . . 2 Gun 112 | 16 6 16 74 . . . . Cannon 11 | . . . 11 . . . . Launcher . | . . . . . . . . Special 2 | . . . . . . . 2 Kinetic 103 | 16 6 16 65 . . . . Thermal 20 | . . . 20 . . . . Explosive . | . . . . . . . . Electromagnetic . | . . . . . . . . Impact 1 | . . . . . . . 1 Piercing 1 | . . . . . . . 1 Robot Hit Streak 9 | 5 1 3 9 . . . 9 Robot Miss Streak 3 | 3 1 3 3 . . . 1 Penetration Max . | . . . . . . . . Secondary Targets 4 | . . 2 2 . . . . Max Gunslinging Chain 1 | . . 1 1 . . . . Shots Hit Robots 101 | 9 3 9 64 . 15 . 1 Core Hits 32 | 4 2 6 17 . 2 . 1 Critical Kills . | . . . . . . . . Critical Parts Destroyed . | . . . . . . . . Critical Strikes 3 | . . . 1 . 1 . 1 Destroy 1 | . . . 1 . . . . Sever 1 | . . . . . 1 . . Impale 1 | . . . . . . . 1 Melee Attacks 44 | . . . . 5 35 . 4 Impact . | . . . . . . . . Slashing 43 | . . . . 5 34 . 4 Piercing . | . . . . . . . . Sneak Attacks 3 | . . . . . 3 . . Combat Hostiles . | . . . . . . . . Follow-up Attacks . | . . . . . . . . Damage Inflicted 2155 | 112 32 134 1138 . 620 . 119 Guns 1160 | 112 32 130 886 . . . . Cannons 252 | . . . 252 . . . . Explosions . | . . . . . . . . Melee 620 | . . . . . 620 . . Ramming 4 | . . 4 . . . . . Kinetic 1071 | 112 32 130 797 . . . . Thermal 341 | . . . 341 . . . . Explosive . | . . . . . . . . Electromagnetic . | . . . . . . . . Impact 105 | . . . . . . . 105 Slashing 620 | . . . . . 620 . . Piercing 14 | . . . . . . . 14 Highest Corruption 3 | . . . . . . . 3 Average Corruption 3 | . . . . . . . 3 Corruption Purged . | . . . . . . . . Corruption Blocked . | . . . . . . . . Effects 2 | . . . . . . . 2 Heat Flow Errors 2 | . . . . . . . 2 Overload Shots . | . . . . . . . . Overflow Damage 175 | . . . . . 123 . 52 Projectiles 52 | . . . . . . . 52 Explosions . | . . . . . . . . Melee 123 | . . . . . 123 . . Knockbacks 1 | . . . . . . . 1 Impact 1 | . . . . . . . 1 Kinetic . | . . . . . . . . Secondary . | . . . . . . . . Self-Inflicted Damage . | . . . . . . . . Shots . | . . . . . . . . Rammed 1 | . . 1 . . . . . Targets Rammed 2 | . . 2 . . . . . Kicked . | . . . . . . . . Crushed 1 | . . 1 . . . . . Highest Temperature 161 | . . . 12 . . . 161 Average Temperature 38 | . . . 10 . . . 82 Received Heat Transfer 141 | . . . 42 . 72 . 27 Siege Activations . | . . . . . . . . Martial Activations . | . . . . . . . . Shielding Activations . | . . . . . . . . Robots Disrupted . | . . . . . . . . Combat Hostiles . | . . . . . . . . Robots Corrupted . | . . . . . . . . Combat Hostiles . | . . . . . . . . Parts Fried . | . . . . . . . . Impact Corruptions 1 | . . . . . . . 1 Robots Melted . | . . . . . . . . Combat Hostiles . | . . . . . . . . Parts Melted . | . . . . . . . . Heat Transferred 533 | . . . 533 . . . . Parts Sabotaged . | . . . . . . . . Parts Stolen . | . . . . . . . . Parts Stripped . | . . . . . . . . Power Chain Reactions . | . . . . . . . . Alert | -11 -10 -10 -10 -7 -5 -5 -5 ------- Run | Yrd Mat Min Sub Scr Fac Was Fac Maximum Alert Level 1 | . . . . . 1 . . Low Security (%) 91 | 100 100 100 . . 72 100 100 Level 1 8 | . . . . . 27 . . Level 2 . | . . . . . . . . Level 3 . | . . . . . . . . Level 4 . | . . . . . . . . Level 5 . | . . . . . . . . High Security . | . . . . . . . . Max Security . | . . . . . . . . Peak Influence 288 | 5 5 120 . . 288 97 53 Initial 97 | . 3 . . . . 97 53 Average 71 | 1 1 51 . . 167 88 11 Influence Increases 783 | 15 5 145 . . 524 . 94 Destroy 0b10 Robot/C 240 | . . 120 . . 100 . 20 Destroy 0b10 Robot/NC 35 | 15 5 5 . . 5 . 5 Destroy Leader 30 | . . 20 . . 10 . . Allied During Kill 1 | . . . . . . . 1 Successful Hack 3 | . . . . . 3 . . Destroy Structure 84 | . . . . . 76 . 8 Partial Spotted 105 | . . . . . 105 . . Lose Combat Pursuer 285 | . . . . . 225 . 60 Influence Decreases 768 | 10 10 145 . . 246 201 156 Entered New Map 207 | . 2 . . . . 181 24 Time Decay 473 | 10 8 145 . . 206 20 84 Lost Part 77 | . . . . . 40 . 37 Lost Ally 11 | . . . . . . . 11 Squads Dispatched 8 | . 1 . . . 5 . 2 Investigation 2 | . . . . . 2 . . Extermination 2 | . . . . . 1 . 1 Reinforcement 4 | . 1 . . . 2 . 1 Assault . | . . . . . . . . Garrison . | . . . . . . . . Intercept . | . . . . . . . . Searches Triggered . | . . . . . . . . Construction Impeded . | . . . . . . . . Haulers Reinforced . | . . . . . . . . Active Scanning Responses . | . . . . . . . . Cargo Convoy Interrupts . | . . . . . . . . Stealth | -11 -10 -10 -10 -7 -5 -5 -5 --------- Run | Yrd Mat Min Sub Scr Fac Was Fac Distress Signals 2 | . . . . . 1 . 1 Communications Jammed . | . . . . . . . . Distress Signals . | . . . . . . . . Times Spotted 78 | . 1 6 11 3 32 4 21 Peak Tracking Total 15 | . 2 3 4 6 15 4 13 Tactical Retreats 13 | . . . 1 . 8 . 4 Traps | -11 -10 -10 -10 -7 -5 -5 -5 ------- Run | Yrd Mat Min Sub Scr Fac Was Fac Traps Triggered 4 | . . . . . 2 . 2 Indirectly . | . . . . . . . . Trap Hack Attempts . | . . . . . . . . Triggered . | . . . . . . . . Disarmed . | . . . . . . . . Reprogrammed . | . . . . . . . . Reused . | . . . . . . . . Traps Extracted . | . . . . . . . . Installed . | . . . . . . . . Triggered . | . . . . . . . . Machines | -11 -10 -10 -10 -7 -5 -5 -5 ---------- Run | Yrd Mat Min Sub Scr Fac Was Fac Machines Disabled 6 | . . . . 6 . . . Max in Single Turn 1 | . . . . 1 . . . Garrison Access 1 | . . . . . . . 1 Machines Repaired . | . . . . . . . . Machines Dismantled . | . . . . . . . . Machines Sabotaged . | . . . . . . . . Overloaded Fab Kills . | . . . . . . . . Hacking | -11 -10 -10 -10 -7 -5 -5 -5 --------- Run | Yrd Mat Min Sub Scr Fac Was Fac Machines Accessed 7 | . . . . 2 3 . 2 Terminals 1 | . . . . . 1 . . Fabricators 2 | . . . . . 1 . 1 Repair Stations . | . . . . . . . . Recycling Units 1 | . . . . . 1 . . Scanalyzers . | . . . . . . . . Garrison Access 1 | . . . . . . . 1 Total Hacks 22 | . . . . 6 10 . 6 Successful 15 | . . . . 6 6 . 3 Failed 7 | . . . . . 4 . 3 Catastrophic . | . . . . . . . . Database Lockouts . | . . . . . . . . Manual 12 | . . . . . 9 . 3 Terminals 5 | . . . . . 5 . . Fabricators 7 | . . . . . 2 . 5 Repair Stations . | . . . . . . . . Recycling Units 3 | . . . . . 3 . . Scanalyzers . | . . . . . . . . Garrison Access 1 | . . . . . . . 1 Terminal Hacks 7 | . . . . 6 1 . . Record 5 | . . . . 5 . . . Locate Traps 1 | . . . . . 1 . . Proto ID Catalog 1 | . . . . 1 . . . Fabricator Hacks 3 | . . . . . 1 . 2 Load Schematic 2 | . . . . . 1 . 1 Build 1 | . . . . . . . 1 Repair Station Hacks . | . . . . . . . . Recycling Unit Hacks . | . . . . . . . . Scanalyzer . | . . . . . . . . Garrison Access Hacks 1 | . . . . . . . 1 Seal Access 1 | . . . . . . . 1 Unauthorized Hacks 4 | . . . . . 4 . . Terminals 3 | . . . . . 3 . . Track 1 | . . . . . 1 . . Botnet 1 | . . . . . 1 . . Skim 1 | . . . . . 1 . . Fabricators 1 | . . . . . 1 . . Recompile 1 | . . . . . 1 . . Repair Stations . | . . . . . . . . Recycling Units . | . . . . . . . . Scanalyzers . | . . . . . . . . Garrison Access . | . . . . . . . . Data Cores Recovered . | . . . . . . . . Used . | . . . . . . . . Hacking Detections 3 | . . . . . 2 . 1 Full Trace Events . | . . . . . . . . Feedback Events . | . . . . . . . . Feedback Blocked . | . . . . . . . . Robot Schematics Acquired . | . . . . . . . . Robots Built . | . . . . . . . . Authchips . | . . . . . . . . Time . | . . . . . . . . Total Robot Build Rating . | . . . . . . . . Part Schematics Acquired 1 | . . . . 1 . . . Parts Built 1 | . . . . . . . 1 Authchips 1 | . . . . . . . 1 Time 76 | . . . . . . . 76 Total Part Build Rating 5 | . . . . . . . 5 Part Studies Acquired . | . . . . . . . . Parts Repaired . | . . . . . . . . Time . | . . . . . . . . Parts Recycled . | . . . . . . . . Recycled Matter . | . . . . . . . . Retrieved Matter . | . . . . . . . . Retrieved Components . | . . . . . . . . Parts Scanalyzed . | . . . . . . . . Part Schematics Acquired . | . . . . . . . . Parts Damaged . | . . . . . . . . Bothacking | -11 -10 -10 -10 -7 -5 -5 -5 ------------ Run | Yrd Mat Min Sub Scr Fac Was Fac Used RIF Installer . | . . . . . . . . Robots Hacked 1 | . . . . . 1 . . Non-combat 1 | . . . . . 1 . . Combat . | . . . . . . . . Robot Hacks Applied 1 | . . . . . 1 . . find_chute 1 | . . . . . 1 . . Relay Couplers Released . | . . . . . . . . Fabnet Peak Effective % . | . . . . . . . . Robots Rewired . | . . . . . . . . Allies Hacked . | . . . . . . . . Hacks Repelled . | . . . . . . . . Allies | -11 -10 -10 -10 -7 -5 -5 -5 -------- Run | Yrd Mat Min Sub Scr Fac Was Fac Total Allies 1 | . . . . . . . 1 Largest Group 1 | . . . . . . . 1 Highest-Rated Group 10 | . . . . . . . 10 Highest-Rated Ally 10 | . . . . . . . 10 Total Orders . | . . . . . . . . Ally Attacks 6 | . . . . . . . 6 Total Damage 80 | . . . . . . . 80 Kills 1 | . . . . . . . 1 Allies Corrupted 1 | . . . . . . . 1 Allies Melted . | . . . . . . . . Intel | -11 -10 -10 -10 -7 -5 -5 -5 ------- Run | Yrd Mat Min Sub Scr Fac Was Fac Active Infowar (turns) 1684 | 57 85 339 445 . 363 52 343 Optics 391 | . . . . . . 48 343 Seismic 1453 | 57 85 339 445 . 213 49 265 Machine Analysis 758 | . . . . . 363 52 343 Robot Analysis Total . | . . . . . . . . Derelict Logs Recovered 4 | . . 1 . 3 . . . Drone Launches . | . . . . . . . . Drone Recoveries . | . . . . . . . . Exploration | -11 -10 -10 -10 -7 -5 -5 -5 ------------- Run | Yrd Mat Min Sub Scr Fac Was Fac Turns Passed 2856 | 138 85 339 518 944 437 52 343 Spaces Moved 3381 | 64 48 170 335 1368 872 81 443 Core 114 | 7 . . . 13 2 1 91 Treads 364 | 57 48 170 83 . . 2 4 Legs . | . . . . . . . . Wheels 959 | . . . 252 707 . . . Hover . | . . . . . . . . Flight 1944 | . . . . 648 870 78 348 Fastest Speed 30 | 50 160 160 80 37 30 32 32 Average Speed 64 | 147 160 160 103 64 32 36 41 Slowest Speed 192 | 160 160 160 160 117 150 160 192 Overloaded Moves . | . . . . . . . . Propulsion Burnouts . | . . . . . . . . Robots Hopped 14 | . . . . . 10 1 3 Potential Cave-ins 7 | . . . . 7 . . . Cave-ins Triggered . | . . . . . . . . Exploration Rate (%) 32 | 5 18 29 20 76 25 73 14 Regions Visited 7 Branch Regions 3 Pre-discovered Areas 1 | . . . . 1 . . . Known Exits Taken . | . . . . . . . . Unknown Exits Taken 5 | 1 1 1 1 1 . . . Scrap Searched 10 | . . . 3 7 . . . Spaces Dug 82 | . . . . 28 50 . 4 Terrain Destroyed 81 | . . . 1 26 50 . 4 Melee 15 | . . . . . 11 . 4 Projectile 1 | . . . 1 . . . . AOE . | . . . . . . . . Terrain Rammed . | . . . . . . . . Walls Destroyed . | . . . . . . . . Machines Disabled . | . . . . . . . . Actions | -11 -10 -10 -10 -7 -5 -5 -5 --------- Run | Yrd Mat Min Sub Scr Fac Was Fac Total 3867 | 89 50 220 424 1428 964 103 589 Wait 233 | 2 . 41 19 2 41 13 115 Move 3351 | 63 47 169 334 1367 855 78 438 Hop 10 | . . . . . 7 1 2 Pick Up 40 | 8 . . 9 13 4 2 4 Fast Attach 42 | 4 . . 1 14 10 3 10 Attach 23 | 3 . . 7 3 4 2 4 Detach 7 | . . . . 3 2 . 2 Swap 6 | 1 . . 3 . 2 . . Drop 39 | . . . 2 21 4 4 8 Fire 70 | 8 3 8 49 . . . 2 Melee 44 | . . . . 5 35 . 4 Ram . | . . . . . . . . Kick . | . . . . . . . . Crush 2 | . . 2 . . . . . Escape Stasis . | . . . . . . . . Rewire . | . . . . . . . . Trap . | . . . . . . . . Miscellaneous . | . . . . . . . . Route ------- -11/Scrapyard -10/Materials -10/Mines (discovered 2 exits: [*Mat] / [*Sub]) -10/Subcaves -7/Scraptown -5/Factory (discovered 3 exits: Fac / [*Upp] / [*Ext]) -5/Waste -5/Factory History --------- Turn | Location | Event 23 | -11/Scrapyard | Discovered new exit (range 16) 139 | -11/Scrapyard | Entered Materials 195 | -10/Materials | Discovered new exit (range 10) 224 | -10/Materials | Entered Mines 311 | -10/Mines | Build established: Mutant 407 | -10/Mines | Deemed a non-threat by the Exiles lab entrance 453 | -10/Mines | Discovered new exit (range 5) 546 | -10/Mines | Discovered new exit (range 5) 563 | -10/Mines | Entered Subcaves 564 | -10/Subcaves | Approached by a straggling Scientist 631 | -10/Subcaves | Disturbed a concealed Subdweller 928 | -10/Subcaves | Scientist uncovered a shortcut to Scraptown 968 | -10/Subcaves | A Subdweller sparked back to life 968 | -10/Subcaves | A Subdweller sparked back to life 968 | -10/Subcaves | A Subdweller sparked back to life 985 | -10/Subcaves | Core integrity fell below 50% 1024 | -10/Subcaves | Core integrity fell below 20% 1033 | -10/Subcaves | Found Prototype Leg 1039 | -10/Subcaves | Lost 4 parts (1p1u2w) 1081 | -10/Subcaves | Entered Scraptown 1118 | -7/Scraptown | Visited The Evicted 1127 | -7/Scraptown | Visited Shadow of the Wyrm 1143 | -7/Scraptown | Visited Bundlers 1191 | -7/Scraptown | Heard Great Nut preacher, LISTEN AND RECITE! 1217 | -7/Scraptown | Visited UFD Registry 1217 | -7/Scraptown | Registered with UFD as "Thermotank" 1229 | -7/Scraptown | Visited CR-KLE's Repair Center 1234 | -7/Scraptown | Visited IN-MT5's Study 1256 | -7/Scraptown | Visited Assassins FH 1288 | -7/Scraptown | Scanned Subdweller tech in exchange for log data 1290 | -7/Scraptown | Learned location of 1 exit from Factory 1291 | -7/Scraptown | Learned location of Armory (-4) 1357 | -7/Scraptown | Visited Science Guys 1383 | -7/Scraptown | Visited Junk Cannon Lab 1387 | -7/Scraptown | Found Prototype Special Weapon 1391 | -7/Scraptown | Identified Junk Cannon 1433 | -7/Scraptown | Visited LU-1G1's Boring Crew 1449 | -7/Scraptown | Visited Infowarlord's Domain 1465 | -7/Scraptown | Visited Scrap Suit Storage 1481 | -7/Scraptown | Visited Cartography Club 1490 | -7/Scraptown | Visited Abandonware Association 1500 | -7/Scraptown | Learned abandonware demo "REVENGE.EXE" 1500 | -7/Scraptown | Learned abandonware demo "POISON.EXE" 1517 | -7/Scraptown | Visited Supply Room 1529 | -7/Scraptown | Visited Observation Area 1562 | -7/Scraptown | Visited DA-N13 Charitable Foundation 1571 | -7/Scraptown | Found DCF Scrap (29 items) 1609 | -7/Scraptown | Delivered Scrap Shield to a Scientist 1984 | -7/Scraptown | Attacked by Scraptown defenders 1990 | -7/Scraptown | Found Prototype Special Weapon 1990 | -7/Scraptown | Identified LU-1G1's Laser Shovel 2023 | -7/Scraptown | Discovered new exit (range 7) 2025 | -7/Scraptown | Entered Factory 2025 | -5/Factory | Evolved 10 slots: Propulsion x3, Utility x7 2026 | -5/Factory | Identified exit to Factory 2176 | -5/Factory | Lost 3 parts (1p1n1u) 2243 | -5/Factory | Discovered new exit (range 5) 2310 | -5/Factory | Discovered new exit (range 16) 2462 | -5/Factory | Sucked down chute 2462 | -5/Factory | Entered Waste 2471 | -5/Waste | Found Prototype Device 2471 | -5/Waste | Identified Exp. Actuator Array 2477 | -5/Waste | Spotted C-40 Crusher 2487 | -5/Waste | Spotted C-40 Crusher 2487 | -5/Waste | Spotted C-40 Crusher 2487 | -5/Waste | Spotted C-40 Crusher 2488 | -5/Waste | Spotted C-40 Crusher 2492 | -5/Waste | Spotted C-40 Crusher 2499 | -5/Waste | Build established: Hacker-Sprinter 2506 | -5/Waste | Discovered new exit (range 11) 2514 | -5/Waste | Entered Factory 2752 | -5/Factory | Fabricated IN-MT5's Pitchfork "Insurrection"? 2795 | -5/Factory | Core integrity fell below 50% 2819 | -5/Factory | Core integrity fell below 20% 2819 | -5/Factory | Reprogrammed and armed K-01 Serf 2838 | -5/Factory | Lost 6 parts (2n3u1w) 2857 | -5/Factory | Destroyed by C-35 Carver with Carbide Saw Last Messages --------------- 02828_ Discarded Adv. Melee Analysis Suite. 02829_ Acquired Hacking Suite. 02829_ K-01 Serf collects debris. 02830_ G-50 Soldier suffers critical hit (Impale). 02832_ Pressure Siphon disabled. 02833_ K-01 Serf collects debris. 02833_ >> Machine Analyzer network decryption results: 02833_ Recycling Unit x2 02834_ ALERT: Potential suspicious activity detected, Programmers report to Factory Zone 7C. 02838_ K-01 Serf cleans the Pressure Siphon. 02841_ Destroyed Imp. Surge Thruster. 02841_ C-35 Carver system corrupted by crushing effect. 02841_ C-35 Carver knocked back. 02847_ Hacking Suite destroyed. 02848_ Acquired Prototype Flight Unit. 02848_ Identified Cld. Nuclear Pulse Thruster. 02851_ Acquired 132 matter. 02853_ C-45 Heavy ARC bursts open, deploying its payload. 02853_ D-63 Destroyer unfolds itself. Map ----- +----------------------------------------------------+ | ?????????????????????????????????????????????????? | | ?????????????????????????????????????????????????? | | ?????????????????????????????????????????????????? | | ?????????????????????????????????????????????????? | | ????????????????????????? ???????????????????????? | | ????????????????????????? ???????????????????????? | | ????????????????????????? ???????????????????????? | | ????????????????????????? ???????????????????????? | | ????????????????????????? ???????????????????????? | | ????????????????????????? ???????????????????????? | | ????????????????????????? ???????????????????????? | | ????????????????????????? ???????????????????????? | | ????????????????????????? ???????????????????????? | | ????????????????????????? ??????????????"""""""""" | | ????????????????????????# #??????????????""""T"""" | | ????????????????????????# #??????????????????????? | | ????????????????????????+ #??????????????????????? | | ????????????????????????# #??"""????????"""""""""? | | ????????????????????????#R#??"""?????????????????? | | ????????????????????????+ +??"""?????????????????? | | ????????????????????????# #???????????????? ????? | | ????????????????????????# #???????????????? ??? | | ????????????????????????# #???????????????? ???? | | ????????????????????????# #?????????????### ??? | | ????????????????????????# #????????????? ?? | | ????????????????????????#@#?????????????# ??? | | ???????# ?????#?????????#c#?????????????# | | ???????+ ????# ????????#R######????????# | | ???????# #### #########k""" #????????# | | ???????# # """ #????????# | | ???????# # """ #????????# | | ???????# + #????????# ! | | ???????# # #????????# | | ???????# # * #????????# """"" | | ???????######## ##########????????# ""T"" | | ??????????????# #?????????????????? | | ??????????????# #################### | | ??????????????# / ! # """" " | | ??????????????#+## # # """" " | | ?????????????????#" # # """" " | | ?????????????????#%" # + | | ?????????????????#" # """# """" " | | ?????????????????# # Y"# """" " | | ????????"?""????? # """# """" " | | #####???"R""????##### # # | | """ #???""""??????### #################### % | | "F""#???????????? = ???????########## !! " | | " ""#########+### ####### !! [" | | %! | | """"* | +----------------------------------------------------+ Best States ------------- Heat Dissipation 40 Energy Generation 16 Energy Capacity 290 Matter Stores 300 Matter Capacity 300 Sight Range 22 Terrain Scan Density 10 Propulsion Shielding 66 Weapon Shielding 33 Evasion (%) 70 Melee Accuracy 13 Recoil Reduction 2 Offensive Hacking 50 Authchip Count 1 Item Schematics ----------------- IN-MT5's Pitchfork "Insurrection" | -7/Scraptown | Archive Robot Schematics ------------------ None Fabricated ------------ IN-MT5's Pitchfork "Insurrection" | x1 | -5/Factory | Authchip Repaired ---------- Nothing Studied --------- None Alien Tech Used ----------------- None Achievements -------------- Not Today, Chutes Peasant Uprising Challenges ------------ None Game ------ Seed HypervelocityTargetWings Manual? 0 Play Time 00:33:44 Cumulative 839.8 hours Start 2025.11.28 @ 15:48:09 End 2025.11.28 @ 16:27:50 Sessions 3 Manual Loads 0 Difficulty Rogue Special Mode None Game No. 845 Rogue 845 Adventurer 0 Explorer 0 Win Type - Total 40 Types 15/4/11/2/0/0/5/2/1/0 Lore% 96 Gallery% 86 Achievement% 65 Wizard Run 0 Options --------- Layout 0 ASCII 0 Keyboard 0 Movement Numpad Keybinds 0 Fullscreen 1 Font 18/Smallcaps Map View 76x50 Zoom Use 0% Tactical HUD 1 Map Filters NONE Filters NONE Steam 1 RUN: 9321d650-9ce8-4fca-a63e-f1b7345f5d40